bitfinex-derivatives/quotes_SOLF0:USTF0_20250325
["timestamp","ask_amount","ask_price","bid_price","bid_amount"]
[1742874911190,0.04984427,138.58,138.57,7.2164]
[1742874911493,0.04984427,138.58,138.56,28.02]
[1742874911690,0.04984427,138.58,138.57,7.2164]
[1742874911891,0.04984427,138.58,138.56,28.02]
[1742874912089,0.04984427,138.58,138.55,0.05225598]
[1742874912397,0.04984427,138.58,138.55,7.26965598]
[1742874913198,0.04984427,138.58,138.56,7.2169]
[1742874913596,0.04984427,138.58,138.55,0.05225598]
[1742874915100,0.04984427,138.58,138.56,7.2165]
[1742874915502,0.04984427,138.58,138.55,0.05225598]
[1742874915802,7.2168,138.57,138.55,0.05225598]
[1742874916199,0.04984427,138.58,138.55,0.05225598]
[1742874916801,0.04984427,138.58,138.57,7.2164]
[1742874917400,0.04984427,138.58,138.56,7.2167]
[1742874917808,0.04984427,138.58,138.57,7.2164]
[1742874918905,0.04984427,138.58,138.56,7.2167]
[1742874920299,0.04984427,138.58,138.57,7.2164]
[1742874921807,0.04984427,138.58,138.55,0.05225598]
[1742874921808,0.04984427,138.58,138.56,7.2167]
[1742874922806,7.26574427,138.58,138.55,7.26945598]
[1742874923205,0.04984427,138.58,138.55,0.05225598]
[1742874923809,0.04984427,138.58,138.56,7.2169]
[1742874924307,7.26574427,138.58,138.55,7.26955598]
[1742874924609,0.04984427,138.58,138.56,28.02]
[1742874925301,7.2167,138.57,138.55,28.07225598]
[1742874925508,0.04984427,138.58,138.55,28.07225598]
[1742874925906,0.04984427,138.58,138.55,35.28965598]
[1742874926205,0.04984427,138.58,138.55,28.07225598]
[1742874926405,0.04984427,138.58,138.57,7.2164]
[1742874927202,0.04984427,138.58,138.55,28.07225598]
[1742874927703,0.04984427,138.58,138.55,35.28935598]
[1742874928310,7.26614427,138.58,138.55,35.28935598]
[1742874928703,7.26614427,138.58,138.56,7.2169]
[1742874929009,7.26614427,138.58,138.55,28.07225598]
[1742874929711,0.04984427,138.58,138.55,28.07225598]
[1742874930304,7.2164,138.57,138.55,28.07225598]
[1742874930612,0.04984427,138.58,138.55,28.07225598]
[1742874931309,7.2169,138.56,138.55,0.05225598]
[1742874932107,0.04984427,138.58,138.55,0.05225598]
[1742874932308,0.04984427,138.58,138.55,7.26935598]
[1742874932504,0.04984427,138.58,138.55,0.05225598]
[1742874933114,7.26594427,138.58,138.55,7.26945598]
[1742874933310,0.04984427,138.58,138.55,0.05225598]
[1742874933709,7.2169,138.56,138.55,0.05225598]
[1742874940711,0.04984427,138.58,138.55,0.05225598]
[1742874941215,0.04984427,138.58,138.56,7.2166]
[1742874941614,0.04984427,138.58,138.55,0.05225598]
[1742874941817,7.2169,138.56,138.55,0.05225598]
[1742874951925,7.2165,138.57,138.55,0.05225598]
[1742874953225,0.04984427,138.58,138.55,0.05225598]
[1742874953226,7.2169,138.56,138.55,0.05225598]
[1742874963218,7.2169,138.56,138.51,28.0]
[1742874963219,7.2203,138.5,138.48,28.0]
[1742874963428,4.3326,138.55,138.48,28.0]
[1742874963731,4.3326,138.55,138.47,39.75297169]
[1742874963927,28.0,138.54,138.47,39.75297169]
[1742874964323,0.05211051,138.52,138.49,0.04747055]
[1742874965326,7.2195,138.51,138.49,0.04747055]
[1742874965530,0.05211051,138.52,138.49,0.04747055]
[1742874965830,7.22,138.51,138.49,0.04747055]
[1742874966030,0.05211051,138.52,138.49,0.04747055]
[1742874966731,7.22,138.5,138.49,0.04747055]
[1742874968226,2.0445,138.51,138.43,39.75297169]
[1742874968427,4.1959,138.5,138.43,67.75297169]
[1742874968626,4.1959,138.5,138.44,7.2229]
[1742874968826,4.1959,138.5,138.43,39.75297169]
[1742874969027,4.1959,138.5,138.43,67.75297169]
[1742874969427,0.05093031,138.48,138.45,0.05217747]
[1742874969832,0.05093031,138.48,138.46,7.2217]
[1742874970033,0.05093031,138.48,138.45,0.05217747]
[1742874970535,0.05093031,138.48,138.47,7.2216]
[1742874970728,0.05093031,138.48,138.47,35.2216]
[1742874972038,0.05093031,138.48,138.47,28.0]
[1742874972738,4.0893,138.54,138.47,28.0]
[1742874973438,7.2189,138.53,138.49,7.2202]
[1742874973637,7.2189,138.53,138.47,28.0]
[1742874973836,0.04697471,138.52,138.5,0.05402128]
[1742874974034,6.1611,138.58,138.51,28.0]
[1742874974235,0.05501081,138.52,138.51,35.2191]
[1742874974436,6.1611,138.58,138.53,0.05021608]
[1742874974630,6.1611,138.58,138.51,28.0]
[1742874974833,0.05287672,138.57,138.54,0.04635562]
[1742874975341,7.2174,138.55,138.54,0.04635562]
[1742874980540,12.64290623,138.57,138.42,42.32373971]
[1742874980740,12.59002951,138.55,138.44,28.0]
[1742874980942,40.59002951,138.55,138.44,28.0]
[1742874981140,28.0,138.55,138.44,28.0]
[1742874981644,0.05501251,138.51,138.48,0.05266398]
[1742874982343,7.2205,138.5,138.48,0.05266398]
[1742874982643,0.05501251,138.51,138.48,0.05266398]
[1742874983038,7.2205,138.49,138.48,0.05266398]
[1742874984946,7.2202,138.5,138.48,0.05266398]
[1742874985240,0.05501251,138.51,138.48,0.05266398]
[1742874985445,0.05501251,138.51,138.48,28.05266398]
[1742874986242,0.05501251,138.51,138.5,7.22]
[1742874986945,7.2177,138.55,138.51,7.2192]
[1742874987346,7.2177,138.55,138.52,28.0]
[1742874988046,7.218,138.54,138.52,28.0511577]
[1742874988745,7.2185,138.53,138.52,28.0511577]
[1742874990747,7.2181,138.54,138.52,28.0511577]
[1742874991147,7.2185,138.53,138.52,28.0511577]
[1742874991447,7.2185,138.53,138.52,0.0511577]
[1742875020372,0.05248214,138.55,138.52,0.0511577]
[1742875020373,7.2182,138.54,138.52,0.0511577]
[1742875020777,7.2182,138.54,138.52,28.0311577]
[1742875022473,7.2182,138.54,138.52,35.2500577]
[1742875022678,7.2182,138.54,138.52,28.0311577]
[1742875023188,7.2185,138.53,138.52,28.0311577]
[1742875023986,7.2185,138.53,138.52,0.0511577]
[1742875033193,0.05248214,138.55,138.52,0.0511577]
[1742875033495,0.05248214,138.55,138.53,27.98]
[1742875033896,7.27038214,138.55,138.53,27.98]
[1742875035202,0.05248214,138.55,138.53,35.1983]
[1742875036599,7.26998214,138.55,138.53,35.1983]
[1742875037802,7.2179,138.54,138.53,27.98]
[1742875038302,0.05248214,138.55,138.53,27.98]
[1742875038803,7.27008214,138.55,138.53,27.98]
[1742875039005,0.05248214,138.55,138.53,27.98]
[1742875039507,7.27018214,138.55,138.53,27.98]
[1742875039805,7.27018214,138.55,138.53,35.1983]
[1742875040001,0.05248214,138.55,138.53,35.1983]
[1742875040202,0.05248214,138.55,138.53,27.98]
[1742875040401,0.05248214,138.55,138.54,7.2179]
[1742875042108,0.05248214,138.55,138.52,0.0511577]
[1742875042302,7.2185,138.53,138.52,0.0511577]
[1742875045111,7.2205,138.49,138.48,27.96]
[1742875047511,0.04811432,138.5,138.48,27.96]
[1742875047709,2.1215,138.56,138.48,27.96]
[1742875047910,27.96,138.59,138.48,27.96]
[1742875048105,7.2171,138.56,138.5,7.2196]
[1742875048311,27.96,138.59,138.5,7.2196]
[1742875048912,0.05172727,138.56,138.53,0.05196]
[1742875050316,7.2174,138.55,138.53,0.05196]
[1742875052213,7.2179,138.54,138.53,0.05196]
[1742875052413,0.05172727,138.56,138.53,0.05196]
[1742875052820,7.2179,138.54,138.53,0.05196]
[1742875056117,7.26872727,138.56,138.53,0.05196]
[1742875056423,0.05172727,138.56,138.53,0.05196]
[1742875056820,0.05172727,138.56,138.54,7.2177]
[1742875057032,0.05172727,138.56,138.53,0.05196]
[1742875057423,7.26872727,138.56,138.53,7.27016]
[1742875057727,0.05172727,138.56,138.53,7.27016]
[1742875058234,7.26892727,138.56,138.53,7.27016]
[1742875059133,7.26892727,138.56,138.54,7.2179]
[1742875059829,7.26892727,138.56,138.53,7.27016]
[1742875063130,0.05172727,138.56,138.54,7.2178]
[1742875063332,0.05172727,138.56,138.53,0.05196]
[1742875063728,0.05172727,138.56,138.55,7.2174]
[1742875064129,0.05172727,138.56,138.54,7.2175]
[1742875065332,7.26862727,138.56,138.54,7.2175]
[1742875065527,7.26862727,138.56,138.53,0.05196]
[1742875065731,0.05172727,138.56,138.53,0.05196]
[1742875066233,7.2174,138.55,138.53,0.05196]
[1742875067235,7.2174,138.55,138.53,7.27036]
[1742875067935,7.26882727,138.56,138.53,7.27036]
[1742875068538,0.05172727,138.56,138.54,7.2179]
[1742875068736,0.05172727,138.56,138.53,0.05196]
[1742875069332,0.05172727,138.56,138.54,27.94]
[1742875069542,0.05172727,138.56,138.55,7.2174]
[1742875069830,0.00404598,138.56,138.55,7.2174]
[1742875070024,0.00404598,138.56,138.54,27.94]
[1742875070025,7.2148,138.6,138.57,7.2162]
[1742875070229,7.2148,138.6,138.58,27.94]
[1742875070630,7.2153,138.59,138.58,27.94]
[1742875070829,6.3926,138.62,138.58,27.94]
[1742875071038,0.04965225,138.6,138.58,27.94]
[1742875071231,0.04965225,138.6,138.58,35.1558]
[1742875071428,0.04965225,138.6,138.58,27.94]
[1742875071935,7.26475225,138.6,138.58,27.94]
[1742875074036,0.04965225,138.6,138.58,27.94]
[1742875076045,2.1771,138.66,138.58,27.94]
[1742875077042,7.2141,138.62,138.59,7.2153]
[1742875077342,0.04636274,138.63,138.61,0.05142628]
[1742875077644,7.25986274,138.63,138.62,27.94]
[1742875078742,0.04636274,138.63,138.62,27.94]
[1742875085445,7.25966274,138.63,138.61,0.05142628]
[1742875085651,7.25966274,138.63,138.62,27.92]
[1742875085652,0.04636274,138.63,138.62,27.92]
[1742875086446,0.04636274,138.63,138.62,35.1338]
[1742875088352,0.04636274,138.63,138.62,27.92]
[1742875089949,7.25966274,138.63,138.61,0.05142628]
[1742875090152,0.04636274,138.63,138.61,0.05142628]
[1742875090549,7.2138,138.62,138.61,0.05142628]
[1742875092556,0.04636274,138.63,138.61,0.05142628]
[1742875092856,0.04636274,138.63,138.62,7.2138]
[1742875093050,0.04636274,138.63,138.62,35.1338]
[1742875102966,7.2108,138.68,138.62,27.92]
[1742875103162,2.1627,138.69,138.62,27.92]
[1742875103561,7.212,138.66,138.62,35.1334]
[1742875103764,2.1627,138.69,138.62,35.1334]
[1742875104360,0.04846808,138.67,138.64,0.05498791]
[1742875104859,7.212,138.66,138.64,0.05498791]
[1742875106764,7.2122,138.65,138.64,0.05498791]
[1742875107065,0.04846808,138.67,138.64,0.05498791]
[1742875107259,7.212,138.66,138.64,0.05498791]
[1742875109164,7.25986808,138.67,138.64,7.26758791]
[1742875109661,0.04846808,138.67,138.66,7.2117]
[1742875109866,0.04846808,138.67,138.64,0.05498791]
[1742875110368,7.25966808,138.67,138.64,7.26728791]
[1742875110666,0.04846808,138.67,138.64,0.05498791]
[1742875111066,7.25986808,138.67,138.64,7.26768791]
[1742875111860,7.2117,138.66,138.64,0.05498791]
[1742875112062,0.04846808,138.67,138.64,0.05498791]
[1742875112368,7.2126,138.65,138.61,27.9]
[1742875112568,0.04846808,138.67,138.61,27.9]
[1742875112870,7.2131,138.64,138.61,27.9]
[1742875113066,7.2131,138.64,138.61,35.114]
[1742875113272,0.05058226,138.64,138.61,0.04788131]
[1742875113567,0.05058226,138.64,138.61,27.94788131]
[1742875114167,7.2138,138.62,138.61,27.94788131]
[1742875116874,7.2138,138.62,138.61,0.04788131]
[1742875119769,6.1296,138.63,138.61,0.04788131]
[1742875119770,7.2135,138.63,138.61,0.04788131]
[1742875119977,0.05058226,138.64,138.61,0.04788131]
[1742875120176,0.05058226,138.64,138.62,7.2133]
[1742875120573,0.05058226,138.64,138.61,0.04788131]
[1742875120976,7.26358226,138.64,138.61,7.26198131]
[1742875122479,0.05058226,138.64,138.61,7.26198131]
[1742875123180,7.26348226,138.64,138.61,7.26198131]
[1742875123382,0.05058226,138.64,138.61,7.26198131]
[1742875123981,7.26338226,138.64,138.61,7.26198131]
[1742875125182,7.2133,138.63,138.61,0.04788131]
[1742875125379,0.05058226,138.64,138.61,0.04788131]
[1742875125777,0.05058226,138.64,138.62,7.2135]
[1742875128180,0.05058226,138.64,138.63,7.2133]
[1742875129084,0.05058226,138.64,138.62,7.2135]
[1742875129282,0.05058226,138.64,138.61,0.04788131]
[1742875129985,7.2136,138.63,138.61,0.04788131]
[1742875130784,7.2138,138.62,138.61,0.04788131]
[1742875133592,7.2135,138.63,138.61,0.04788131]
[1742875134391,7.2138,138.62,138.61,0.04788131]
[1742875140192,7.2135,138.63,138.61,0.04788131]
[1742875143500,7.26348226,138.64,138.61,7.26188131]
[1742875143695,0.05058226,138.64,138.61,0.04788131]
[1742875144400,7.2135,138.63,138.61,0.04788131]
[1742875148209,7.2138,138.62,138.61,0.04788131]
[1742875148596,0.05058226,138.64,138.61,0.04788131]
[1742875148905,7.2135,138.63,138.61,0.04788131]
[1742875149100,0.05058226,138.64,138.61,0.04788131]
[1742875149509,7.2135,138.63,138.61,0.04788131]
[1742875151802,7.2138,138.62,138.61,0.04788131]
[1742875152507,7.2158,138.59,138.56,306.64957169]
[1742875152710,27.86,138.66,138.56,327.29297169]
[1742875153009,27.86,138.66,138.56,287.54]
[1742875153209,7.2156,138.59,138.57,7.2164]
[1742875153612,27.86,138.66,138.56,287.54]
[1742875153807,0.05382343,138.59,138.58,7.2159]
[1742875154105,0.04797282,138.6,138.56,287.54]
[1742875154305,0.04797282,138.6,138.57,0.04930469]
[1742875154699,0.04797282,138.6,138.59,7.2153]
[1742875157011,0.04797282,138.6,138.57,0.04930469]
[1742875157508,0.04797282,138.6,138.57,7.26530469]
[1742875158114,7.26317282,138.6,138.57,0.04930469]
[1742875158920,0.04797282,138.6,138.57,0.04930469]
[1742875159617,7.2159,138.58,138.57,0.04930469]
[1742875162715,0.04797282,138.6,138.57,0.04930469]
[1742875162716,7.2156,138.59,138.57,0.04930469]
[1742875163118,0.04797282,138.6,138.57,0.04930469]
[1742875163323,7.2158,138.59,138.57,0.04930469]
[1742875163522,0.04797282,138.6,138.57,0.04930469]
[1742875164518,7.26307282,138.6,138.57,7.26540469]
[1742875165113,0.04797282,138.6,138.58,7.2157]
[1742875166922,0.04797282,138.6,138.57,7.26540469]
[1742875167125,7.26287282,138.6,138.57,7.26540469]
[1742875167316,0.04797282,138.6,138.57,0.04930469]
[1742875167828,7.2157,138.59,138.57,0.04930469]
[1742875169128,7.2159,138.58,138.57,0.04930469]
[1742875169830,7.2155,138.59,138.57,0.04930469]
[1742875171029,7.26307282,138.6,138.57,0.04930469]
[1742875171931,7.2156,138.59,138.57,0.04930469]
[1742875172131,0.04797282,138.6,138.57,0.04930469]
[1742875172733,7.2159,138.58,138.57,0.04930469]
[1742875178138,2.1206,138.59,138.57,0.04930469]
[1742875178836,7.2159,138.58,138.57,0.04930469]
[1742875181039,9.3362,138.59,138.57,0.04930469]
[1742875181239,2.1206,138.59,138.57,0.04930469]
[1742875181439,0.04797282,138.6,138.57,0.04930469]
[1742875181640,7.26277282,138.6,138.57,7.26540469]
[1742875181836,0.04797282,138.6,138.58,27.84]
[1742875182639,0.04797282,138.6,138.59,7.2153]
[1742875194848,0.04797282,138.6,138.58,27.84]
[1742875195742,0.04797282,138.6,138.58,35.0558]
[1742875196848,7.26277282,138.6,138.58,35.0558]
[1742875197152,7.26277282,138.6,138.57,0.04930469]
[1742875197153,0.04797282,138.6,138.57,27.86930469]
[1742875197343,7.2159,138.58,138.57,0.04930469]
[1742875198348,7.2156,138.59,138.57,0.04930469]
[1742875200756,7.2156,138.59,138.57,0.04930469]
[1742875201656,7.2159,138.58,138.57,0.04930469]
[1742875202751,7.2172,138.56,138.53,7.2182]
[1742875202963,27.82,138.61,138.51,18.02315]
[1742875203366,27.82,138.61,138.52,27.82]
[1742875203861,12.58675213,138.6,138.51,18.02315]
[1742875204060,12.63428537,138.58,138.51,45.84315]
[1742875204252,27.82,138.57,138.51,45.84315]
[1742875204649,4.1571,138.56,138.51,45.84315]
[1742875205154,0.05326889,138.55,138.52,0.05423877]
[1742875205355,0.05326889,138.55,138.52,7.27283877]
[1742875205757,0.05326889,138.55,138.52,0.05423877]
[1742875206358,0.05326889,138.55,138.54,7.2179]
[1742875207356,0.05326889,138.55,138.53,27.82]
[1742875207566,7.27076889,138.55,138.53,27.82]
[1742875208056,7.2179,138.54,138.53,27.82]
[1742875208255,0.05326889,138.55,138.52,0.05423877]
[1742875208762,7.2183,138.54,138.52,0.05423877]
[1742875209062,7.2185,138.53,138.52,0.05423877]
[1742875209454,0.05326889,138.55,138.52,0.05423877]
[1742875210659,7.2185,138.53,138.52,0.05423877]
[1742875210862,0.05326889,138.55,138.52,0.05423877]
[1742875211259,0.05326889,138.55,138.53,7.2182]
[1742875211460,0.05326889,138.55,138.52,0.05423877]
[1742875212262,7.27066889,138.55,138.52,0.05423877]
[1742875212462,7.27066889,138.55,138.52,7.27323877]
[1742875213165,7.27066889,138.55,138.52,0.05423877]
[1742875213659,0.05326889,138.55,138.52,0.05423877]
[1742875214762,7.2185,138.53,138.52,0.05423877]
[1742875214966,6.4475,138.54,138.47,27.82]
[1742875215366,7.2198,138.51,138.47,35.0412]
[1742875215867,7.2192,138.52,138.49,7.2205]
[1742875216168,0.04622301,138.5,138.48,0.05544342]
[1742875216369,0.04622301,138.5,138.48,7.27604342]
[1742875216666,0.04622301,138.5,138.48,0.05544342]
[1742875217468,0.04622301,138.5,138.48,7.27634342]
[1742875218066,0.04622301,138.5,138.49,7.2205]
[1742875218460,0.04622301,138.5,138.48,7.27624342]
[1742875218660,0.04622301,138.5,138.48,35.09624342]
[1742875220262,0.04622301,138.5,138.49,7.2205]
[1742875220465,0.04622301,138.5,138.48,27.87544342]
[1742875221170,0.04622301,138.5,138.48,0.05544342]
[1742875221371,0.04622301,138.5,138.43,259.84]
[1742875221669,7.2228,138.45,138.43,287.66]
[1742875221864,7.2228,138.45,138.43,259.84]
[1742875222260,7.2223,138.46,138.43,259.84]
[1742875222568,0.05092546,138.46,138.43,259.89020555]
[1742875222771,0.05092546,138.46,138.43,267.11390555]
[1742875223166,0.05092546,138.46,138.43,259.89020555]
[1742875224465,0.05092546,138.46,138.45,7.2226]
[1742875224673,7.2199,138.51,138.43,262.07960555]
[1742875224873,7.2199,138.51,138.43,274.61615213]
[1742875225076,7.2199,138.51,138.48,7.2208]
[1742875225871,0.05522456,138.51,138.49,7.2204]
[1742875226271,0.05522456,138.51,138.48,0.05435122]
[1742875227974,7.2205,138.49,138.48,0.05435122]
[1742875234174,7.2202,138.5,138.48,0.05435122]
[1742875234379,0.05522456,138.51,138.48,0.05435122]
[1742875235471,7.2205,138.49,138.48,0.05435122]
[1742875240379,0.05522456,138.51,138.48,0.05435122]
[1742875240887,7.2203,138.5,138.48,0.05435122]
[1742875241080,0.05522456,138.51,138.48,0.05435122]
[1742875241783,7.2205,138.49,138.48,0.05435122]
[1742875251387,7.2201,138.5,138.48,0.05435122]
[1742875252089,7.2205,138.49,138.48,0.05435122]
[1742875255795,7.2232,138.44,138.43,287.64]
[1742875255990,46.83083567,138.5,138.39,9.4269]
[1742875256294,7.2248,138.41,138.39,37.2269]
[1742875256594,7.2248,138.41,138.39,30.0013]
[1742875257095,7.2794145,138.41,138.39,2.25132725]
[1742875257287,7.2794145,138.41,138.39,30.05132725]
[1742875257487,0.0546145,138.41,138.39,30.05132725]
[1742875257693,0.0546145,138.41,138.39,37.27672725]
[1742875258395,0.0546145,138.41,138.4,7.2252]
[1742875258585,34.2144,138.5,138.39,30.05132725]
[1742875258896,34.2144,138.5,138.39,30.0013]
[1742875259293,34.2144,138.5,138.43,7.2233]
[1742875259596,34.2144,138.5,138.43,35.0233]
[1742875259795,0.04852424,138.48,138.45,0.04569972]
[1742875260094,7.2216,138.47,138.45,0.04569972]
[1742875260491,0.04852424,138.48,138.45,0.04569972]
[1742875260690,7.2216,138.47,138.45,0.04569972]
[1742875264095,7.2221,138.46,138.45,0.04569972]
[1742875265995,0.04852424,138.48,138.45,0.04569972]
[1742875266604,0.04852424,138.48,138.46,7.2218]
[1742875266796,0.04852424,138.48,138.47,27.8]
[1742875268397,0.04852424,138.48,138.47,35.0216]
[1742875268601,47.97178108,138.55,138.47,47.63643567]
[1742875268904,47.97178108,138.55,138.47,40.41643567]
[1742875269104,7.2177,138.55,138.47,40.41643567]
[1742875269300,29.52036071,138.58,138.47,40.41643567]
[1742875269597,36.73666071,138.58,138.54,7.2176]
[1742875269802,29.52036071,138.58,138.54,35.0176]
[1742875270101,0.05444376,138.57,138.55,0.05383842]
[1742875270304,7.27094376,138.57,138.55,0.05383842]
[1742875273814,7.2169,138.56,138.55,0.05383842]
[1742875274416,0.05444376,138.57,138.55,0.05383842]
[1742875274805,7.2169,138.56,138.55,0.05383842]
[1742875277610,0.05444376,138.57,138.51,27.78]
[1742875277903,27.78,138.59,138.45,259.98]
[1742875278110,19.68653958,138.57,138.46,27.78]
[1742875278512,7.2209,138.49,138.46,35.0018]
[1742875278912,7.27600719,138.49,138.46,35.05000862]
[1742875279114,0.05510719,138.49,138.46,35.05000862]
[1742875279316,0.05510719,138.49,138.46,27.82820862]
[1742875279512,27.78,138.58,138.46,27.82820862]
[1742875279710,27.78,138.58,138.49,7.2203]
[1742875279917,27.78,138.58,138.5,27.78]
[1742875280421,7.2188,138.53,138.5,27.78]
[1742875280720,27.78,138.58,138.53,0.05242424]
[1742875280721,0.04685214,138.55,138.53,0.05242424]
[1742875280915,7.2187,138.53,138.5,27.78]
[1742875281119,0.04685214,138.55,138.5,34.9999]
[1742875281322,7.2182,138.54,138.5,27.83239969]
[1742875281620,0.04685214,138.55,138.5,27.83239969]
[1742875282020,7.2188,138.53,138.5,27.83239969]
[1742875282221,7.2188,138.53,138.5,35.05209969]
[1742875284020,0.04685214,138.55,138.5,27.83239969]
[1742875284916,7.218,138.54,138.5,27.83239969]
[1742875285115,0.04685214,138.55,138.5,27.83239969]
[1742875286316,7.26455214,138.55,138.52,7.2187]
[1742875286714,7.2182,138.54,138.51,7.2193]
[1742875287222,7.2182,138.54,138.5,27.83239969]
[1742875287622,7.2182,138.54,138.5,35.05199969]
[1742875288221,7.2185,138.53,138.5,35.05199969]
[1742875289027,7.2185,138.53,138.5,27.83239969]
[1742875289525,7.2185,138.53,138.51,27.76]
[1742875289922,7.219,138.52,138.51,27.76]
[1742875290421,7.2195,138.51,138.5,0.05239969]
[1742875290824,0.04833382,138.52,138.45,259.98]
[1742875291029,0.04833382,138.52,138.39,269.86078138]
[1742875291225,0.04833382,138.52,138.4,34.2317]
[1742875291528,27.76,138.53,138.42,7.2239]
[1742875291929,14.4381,138.52,138.4,41.4567]
[1742875292121,0.04708965,138.49,138.46,0.04566641]
[1742875292521,7.2216,138.47,138.46,0.04566641]
[1742875296230,7.2245,138.42,138.41,27.76]
[1742875296533,2.2077,138.46,138.41,27.76]
[1742875296729,7.2246,138.42,138.4,27.76]
[1742875296930,2.2077,138.46,138.4,27.76]
[1742875297432,7.2252,138.4,138.39,287.62]
[1742875297625,7.2252,138.4,138.39,27.76]
[1742875297825,7.27532893,138.41,138.39,27.76]
[1742875298027,7.2249,138.41,138.39,27.76]
[1742875298329,7.27560364,138.41,138.39,27.81549091]
[1742875298829,7.2252,138.4,138.39,27.81549091]
[1742875299132,7.2252,138.4,138.39,0.05549091]
[1742875299632,0.05070364,138.41,138.39,0.05549091]
[1742875301532,0.05070364,138.41,138.4,7.2252]
[1742875302137,0.05070364,138.41,138.39,7.28109091]
[1742875302435,0.05070364,138.41,138.39,0.05549091]
[1742875303232,0.05070364,138.41,138.4,7.2252]
[1742875306435,4.2956,138.48,138.39,0.05549091]
[1742875306635,4.2956,138.48,138.37,27.76]
[1742875307431,2.1672,138.48,138.37,27.76]
[1742875307737,0.04894781,138.44,138.41,0.05053678]
[1742875307932,7.2218,138.47,138.42,27.78]
[1742875308137,0.05022898,138.44,138.43,27.78]
[1742875308534,0.05022898,138.44,138.43,35.0037]
[1742875309238,0.05022898,138.44,138.43,27.78]
[1742875309838,0.05022898,138.44,138.43,35.0037]
[1742875310334,0.05022898,138.44,138.43,27.78]
[1742875312240,7.27342898,138.44,138.43,27.78]
[1742875313239,0.05022898,138.44,138.43,27.78]
[1742875314140,0.05022898,138.44,138.43,35.0037]
[1742875314837,0.05022898,138.44,138.43,27.78]
[1742875317340,7.27342898,138.44,138.43,27.78]
[1742875318140,0.05022898,138.44,138.43,27.76]
[1742875318740,7.27342898,138.44,138.43,27.76]
[1742875319445,7.2242,138.42,138.41,27.80812082]
[1742875320640,7.2242,138.42,138.41,0.04812082]
[1742875323844,7.2239,138.43,138.41,0.04812082]
[1742875324146,0.05022898,138.44,138.41,0.04812082]
[1742875324647,7.2242,138.42,138.41,0.04812082]
[1742875325641,7.22,138.42,138.29,20.78592865]
[1742875325841,4.2185,138.41,138.28,34.2952]
[1742875326242,23.90503958,138.41,138.29,27.76]
[1742875326744,0.04595603,138.36,138.34,0.04884785]
[1742875326946,27.76,138.37,138.29,27.76]
[1742875327142,27.76,138.37,138.27,40.00312554]
[1742875327347,7.2308,138.3,138.27,40.00312554]
[1742875327748,7.2308,138.3,138.29,133.34674544]
[1742875328344,0.04638852,138.31,138.29,161.10674544]
[1742875329451,7.27668852,138.31,138.29,161.10674544]
[1742875330051,7.2305,138.3,138.29,161.10674544]
[1742875331048,7.2305,138.3,138.29,27.76]
[1742875334052,0.04638852,138.31,138.26,27.78]
[1742875334455,7.232,138.27,138.26,27.78]
[1742875334853,7.2317,138.28,138.26,27.78]
[1742875335046,4.3938,138.34,138.26,27.78]
[1742875335243,4.3938,138.34,138.26,27.83168887]
[1742875335552,7.2318,138.28,138.26,27.83168887]
[1742875335752,0.05551759,138.31,138.26,27.83168887]
[1742875336955,7.2319,138.28,138.26,27.83168887]
[1742875337148,0.05551759,138.31,138.26,27.83168887]
[1742875337548,7.232,138.27,138.26,27.83168887]
[1742875338150,7.232,138.27,138.26,0.05168887]
[1742875340054,7.232,138.27,138.26,27.83168887]
[1742875341553,4.3938,138.34,138.26,27.83168887]
[1742875342349,7.2316,138.28,138.26,27.83168887]
[1742875342851,7.28457289,138.28,138.26,27.83168887]
[1742875344361,7.232,138.27,138.26,27.83168887]
[1742875349865,7.232,138.27,138.26,0.05168887]
[1742875350059,7.232,138.27,138.26,27.83168887]
[1742875350254,7.232,138.27,138.26,0.05168887]
[1742875350458,7.232,138.27,138.26,27.83168887]
[1742875351258,7.28467289,138.28,138.26,27.83168887]
[1742875351766,7.232,138.27,138.26,27.83168887]
[1742875353566,7.28467289,138.28,138.26,27.83168887]
[1742875354367,7.232,138.27,138.26,27.83168887]
[1742875364365,7.232,138.27,138.26,0.05168887]
[1742875364567,7.24,138.27,138.16,10.00298719]
[1742875364767,12.65175486,138.26,138.16,14.22838719]